[Event "*** Titled Tuesday Blitz"]
[Site "Chess.com"]
[Date "2020.10.20"]
[Round "9"]
[White "Heineccius"]
[Black "QuintilianoR"]
[Result "1-0"]
[WhiteElo "2546"]
[BlackElo "2654"]
[TimeControl "180+1"]
[EndTime "11:46:56 PDT"]
[Termination "Heineccius won by resignation"]

1. d4 {[%clk 0:03:00.9]} 1... Nf6 {[%clk 0:02:58.8]} 2. c4 {[%clk 0:03:00.6]}
2... e6 {[%clk 0:02:58.9]} 3. Nc3 {[%clk 0:02:59.6]} 3... Bb4 {[%clk 0:02:58]}
4. g3 {[%clk 0:02:59.5]} 4... d5 {[%clk 0:02:56.7]} 5. Bg2 {[%clk 0:02:59.1]}
5... O-O {[%clk 0:02:57]} 6. Nf3 {[%clk 0:02:59.6]} 6... dxc4 {[%clk 0:02:56.6]}
7. O-O {[%clk 0:03:00.1]} 7... Nc6 {[%clk 0:02:55.9]} 8. Qa4 {[%clk 0:03:00.7]}
8... Nd5 {[%clk 0:02:40.4]} 9. Qc2 {[%clk 0:02:56.4]} 9... Be7 {[%clk
0:02:31.4]} 10. Rd1 {[%clk 0:02:52.8]} 10... Rb8 {[%clk 0:02:26.3]} 11. e4
{[%clk 0:02:13.3]} 11... Ndb4 {[%clk 0:02:23.9]} 12. Qe2 {[%clk 0:02:13.7]}
12... Nd3 {[%clk 0:02:15.4]} 13. Be3 {[%clk 0:02:13.1]} 13... b5 {[%clk
0:02:13.2]} 14. b3 {[%clk 0:02:09.2]} 14... Ba6 {[%clk 0:01:56.9]} 15. a4 {[%clk
0:01:55.3]} 15... b4 {[%clk 0:01:03.9]} 16. Nb5 {[%clk 0:01:54.6]} 16... Rxb5
{[%clk 0:01:03]} 17. axb5 {[%clk 0:01:53.9]} 17... Bxb5 {[%clk 0:01:02.8]} 18.
bxc4 {[%clk 0:01:45.7]} 18... Bxc4 {[%clk 0:01:02.5]} 19. Qc2 {[%clk 0:01:44]}
19... Bb5 {[%clk 0:00:47.2]} 20. Bf1 {[%clk 0:01:42.1]} 20... b3 {[%clk
0:00:25.2]} 21. Qxb3 {[%clk 0:01:40.4]} 21... Ncb4 {[%clk 0:00:25.2]} 22. Bxd3
{[%clk 0:01:35.7]} 22... Bxd3 {[%clk 0:00:25.4]} 23. Rxd3 {[%clk 0:01:34.1]}
23... Nxd3 {[%clk 0:00:26.3]} 24. Qxd3 {[%clk 0:01:34.1]} 24... c5 {[%clk
0:00:26.7]} 25. Rxa7 {[%clk 0:01:29.5]} 25... cxd4 {[%clk 0:00:26.5]} 26. Qxd4
{[%clk 0:01:26.4]} 26... Bd6 {[%clk 0:00:24.7]} 27. e5 {[%clk 0:01:20.4]} 27...
Bc7 {[%clk 0:00:23.9]} 28. Qxd8 {[%clk 0:01:19.7]} 28... Bxd8 {[%clk 0:00:24.8]}
29. Ra8 {[%clk 0:01:19.4]} 29... Be7 {[%clk 0:00:24.4]} 30. Rxf8+ {[%clk
0:01:18.4]} 30... Kxf8 {[%clk 0:00:25.3]} 31. Nd4 {[%clk 0:01:16]} 31... h6
{[%clk 0:00:22.6]} 32. f4 {[%clk 0:01:15.9]} 32... Ba3 {[%clk 0:00:22.2]} 33.
Kf2 {[%clk 0:01:15.3]} 33... Ke8 {[%clk 0:00:22.3]} 34. Kf3 {[%clk 0:01:14.6]}
34... Kd7 {[%clk 0:00:22.4]} 35. Ke4 {[%clk 0:01:13.9]} 35... Bb4 {[%clk
0:00:21.6]} 36. g4 {[%clk 0:01:13.7]} 36... Be1 {[%clk 0:00:21.3]} 37. f5 {[%clk
0:01:13.5]} 37... Bc3 {[%clk 0:00:20.5]} 38. Nb3 {[%clk 0:01:12.8]} 38... Bb2
{[%clk 0:00:18.7]} 39. Nc5+ {[%clk 0:01:10.7]} 39... Ke7 {[%clk 0:00:18.5]} 40.
Nd3 {[%clk 0:01:07]} 40... Ba1 {[%clk 0:00:18.5]} 41. Bc5+ {[%clk 0:01:04.3]}
41... Ke8 {[%clk 0:00:18.3]} 42. Bd4 {[%clk 0:01:04.4]} 1-0

[Event "*** Titled Tuesday Blitz"]
[Site "Chess.com"]
[Date "2020.10.20"]
[Round "9"]
[White "indfraeng"]
[Black "vaishali2001"]
[Result "1-0"]
[WhiteElo "2356"]
[BlackElo "2551"]
[TimeControl "180+1"]
[EndTime "11:46:57 PDT"]
[Termination "indfraeng won by resignation"]

1. d4 {[%clk 0:03:00.9]} 1... Nf6 {[%clk 0:02:57.9]} 2. c4 {[%clk 0:03:01.3]}
2... c5 {[%clk 0:02:55.7]} 3. d5 {[%clk 0:03:01.6]} 3... b5 {[%clk 0:02:54]} 4.
Qc2 {[%clk 0:03:01.9]} 4... bxc4 {[%clk 0:02:50.5]} 5. e4 {[%clk 0:03:02.3]}
5... d6 {[%clk 0:02:49]} 6. Bxc4 {[%clk 0:03:02.1]} 6... g6 {[%clk 0:02:49.6]}
7. Nf3 {[%clk 0:03:01.3]} 7... Bg7 {[%clk 0:02:50.1]} 8. O-O {[%clk 0:03:01.7]}
8... O-O {[%clk 0:02:50.7]} 9. h3 {[%clk 0:03:01.8]} 9... Nbd7 {[%clk
0:02:45.4]} 10. Re1 {[%clk 0:03:01.3]} 10... Nb6 {[%clk 0:02:44.4]} 11. Bf1
{[%clk 0:03:01.5]} 11... Rb8 {[%clk 0:02:34.4]} 12. Nc3 {[%clk 0:02:59.6]} 12...
Bd7 {[%clk 0:02:21.1]} 13. b3 {[%clk 0:02:49.2]} 13... e6 {[%clk 0:02:08.2]} 14.
dxe6 {[%clk 0:02:39.4]} 14... Bxe6 {[%clk 0:02:09.1]} 15. Bb2 {[%clk 0:02:39.6]}
15... d5 {[%clk 0:02:00.8]} 16. exd5 {[%clk 0:02:35.7]} 16... Nbxd5 {[%clk
0:02:00.1]} 17. Nxd5 {[%clk 0:02:32.5]} 17... Qxd5 {[%clk 0:01:59.5]} 18. Rad1
{[%clk 0:02:31.2]} 18... Qb7 {[%clk 0:01:38]} 19. Bc4 {[%clk 0:02:25.7]} 19...
Bf5 {[%clk 0:01:35.6]} 20. Qc1 {[%clk 0:02:20.5]} 20... Rbe8 {[%clk 0:01:23.3]}
21. Qa1 {[%clk 0:02:16.8]} 21... Qb6 {[%clk 0:01:15.8]} 22. Ne5 {[%clk
0:01:58.8]} 22... Re7 {[%clk 0:01:00.4]} 23. Ng4 {[%clk 0:01:41.1]} 23... Rxe1+
{[%clk 0:00:44.2]} 24. Rxe1 {[%clk 0:01:42]} 24... Bxg4 {[%clk 0:00:32.1]} 25.
hxg4 {[%clk 0:01:42.5]} 25... Qd6 {[%clk 0:00:28.2]} 26. Be5 {[%clk 0:01:41.3]}
26... Qc6 {[%clk 0:00:25]} 27. Bc3 {[%clk 0:01:36.4]} 27... h6 {[%clk 0:00:24]}
28. f3 {[%clk 0:01:23.3]} 28... Qd6 {[%clk 0:00:21.5]} 29. Be5 {[%clk
0:01:23.2]} 29... Qc6 {[%clk 0:00:21.5]} 30. Bc3 {[%clk 0:01:23.4]} 30... Re8
{[%clk 0:00:16.3]} 31. Rxe8+ {[%clk 0:01:20.6]} 31... Nxe8 {[%clk 0:00:17.2]}
32. Bxg7 {[%clk 0:01:18.4]} 32... Nxg7 {[%clk 0:00:18.1]} 33. Qe5 {[%clk
0:01:18.8]} 33... a5 {[%clk 0:00:09.3]} 34. Qe7 {[%clk 0:01:14.6]} 34... Qe8
{[%clk 0:00:08]} 35. Qxc5 {[%clk 0:01:06.7]} 35... Qe1+ {[%clk 0:00:08]} 36. Bf1
{[%clk 0:01:07.3]} 36... Ne6 {[%clk 0:00:08.5]} 37. Qc8+ {[%clk 0:01:06.9]}
37... Kg7 {[%clk 0:00:08.6]} 38. Qc4 {[%clk 0:01:07.4]} 38... Nd4 {[%clk
0:00:08]} 39. Qxd4+ {[%clk 0:01:05.3]} 1-0

[Event "*** Titled Tuesday Blitz"]
[Site "Chess.com"]
[Date "2020.10.20"]
[Round "9"]
[White "Ranindu2003"]
[Black "gliglu"]
[Result "1-0"]
[WhiteElo "2554"]
[BlackElo "2352"]
[TimeControl "180+1"]
[EndTime "11:47:00 PDT"]
[Termination "Ranindu2003 won by resignation"]

1. e4 {[%clk 0:02:59.8]} 1... c6 {[%clk 0:02:58.7]} 2. d4 {[%clk 0:02:58.8]}
2... d5 {[%clk 0:02:59.2]} 3. e5 {[%clk 0:02:59.3]} 3... Bf5 {[%clk 0:02:55.2]}
4. Nd2 {[%clk 0:02:59.4]} 4... e6 {[%clk 0:02:54.3]} 5. Nb3 {[%clk 0:02:59.9]}
5... Nd7 {[%clk 0:02:51.9]} 6. Nf3 {[%clk 0:02:59.2]} 6... Ne7 {[%clk
0:02:50.9]} 7. Be2 {[%clk 0:02:58.5]} 7... Bg6 {[%clk 0:02:49.5]} 8. O-O {[%clk
0:02:57.4]} 8... Nf5 {[%clk 0:02:49.3]} 9. Bd2 {[%clk 0:02:57.8]} 9... Be7
{[%clk 0:02:49.3]} 10. a4 {[%clk 0:02:57.9]} 10... O-O {[%clk 0:02:47.7]} 11. a5
{[%clk 0:02:55]} 11... c5 {[%clk 0:02:44.7]} 12. a6 {[%clk 0:02:46.1]} 12... b6
{[%clk 0:02:42.3]} 13. Bb5 {[%clk 0:02:38.6]} 13... Rc8 {[%clk 0:02:39.3]} 14.
dxc5 {[%clk 0:02:23.9]} 14... Nxc5 {[%clk 0:02:33.7]} 15. Nbd4 {[%clk 0:02:20]}
15... Nxd4 {[%clk 0:02:32.9]} 16. Nxd4 {[%clk 0:02:20.9]} 16... Ne4 {[%clk
0:02:29.8]} 17. Nc6 {[%clk 0:02:12.1]} 17... Qc7 {[%clk 0:02:24]} 18. Be3 {[%clk
0:02:04.7]} 18... Bc5 {[%clk 0:02:13.8]} 19. Qe2 {[%clk 0:01:44.9]} 19... f5
{[%clk 0:02:11.9]} 20. f3 {[%clk 0:01:29.7]} 20... Bxe3+ {[%clk 0:01:48.2]} 21.
Qxe3 {[%clk 0:01:29.4]} 21... Nc5 {[%clk 0:01:48.2]} 22. b4 {[%clk 0:01:28.6]}
22... Nd7 {[%clk 0:01:47.8]} 23. Ne7+ {[%clk 0:01:24.9]} 23... Kh8 {[%clk
0:01:44.5]} 24. Nxc8 {[%clk 0:01:24.3]} 24... Rxc8 {[%clk 0:01:44.3]} 25. c4
{[%clk 0:01:24.2]} 25... Qxe5 {[%clk 0:01:41.7]} 26. Qxe5 {[%clk 0:01:20.6]}
26... Nxe5 {[%clk 0:01:41.6]} 27. cxd5 {[%clk 0:01:20.9]} 27... exd5 {[%clk
0:01:41.1]} 28. Rfe1 {[%clk 0:01:15]} 28... Nc4 {[%clk 0:01:38]} 29. Rad1 {[%clk
0:01:09.9]} 29... Bf7 {[%clk 0:01:16.2]} 30. Re7 {[%clk 0:01:05.2]} 30... Kg8
{[%clk 0:01:16.1]} 31. Rxa7 {[%clk 0:01:00.4]} 31... Nd6 {[%clk 0:01:14.6]} 32.
Bf1 {[%clk 0:00:57.7]} 32... Rd8 {[%clk 0:00:54.7]} 33. Rc7 {[%clk 0:00:52.5]}
33... Ne8 {[%clk 0:00:49.1]} 34. Rb7 {[%clk 0:00:51.9]} 34... d4 {[%clk
0:00:43.5]} 35. a7 {[%clk 0:00:50.2]} 35... Ra8 {[%clk 0:00:41.3]} 36. Rxd4
{[%clk 0:00:49.7]} 36... Kf8 {[%clk 0:00:39.7]} 37. Rdd7 {[%clk 0:00:48.3]}
37... Be6 {[%clk 0:00:39.8]} 38. Rb8 {[%clk 0:00:48.4]} 1-0

[Event "*** Titled Tuesday Blitz"]
[Site "Chess.com"]
[Date "2020.10.20"]
[Round "9"]
[White "esapunov"]
[Black "KarstenHansch"]
[Result "1-0"]
[WhiteElo "2754"]
[BlackElo "2499"]
[TimeControl "180+1"]
[EndTime "11:47:02 PDT"]
[Termination "esapunov won by resignation"]

1. c4 {[%clk 0:03:00.9]} 1... e6 {[%clk 0:02:58.6]} 2. Nf3 {[%clk 0:03:01.1]}
2... d5 {[%clk 0:02:58.7]} 3. d4 {[%clk 0:03:01.3]} 3... Nf6 {[%clk 0:02:58.5]}
4. Nc3 {[%clk 0:03:01.5]} 4... Be7 {[%clk 0:02:58.5]} 5. Bg5 {[%clk 0:03:01.1]}
5... Nbd7 {[%clk 0:02:58.5]} 6. e3 {[%clk 0:03:01.3]} 6... h6 {[%clk 0:02:57.9]}
7. Bh4 {[%clk 0:03:01.1]} 7... O-O {[%clk 0:02:58.2]} 8. Rc1 {[%clk 0:03:01.4]}
8... c5 {[%clk 0:02:58.3]} 9. dxc5 {[%clk 0:03:00.9]} 9... dxc4 {[%clk
0:02:58.4]} 10. c6 {[%clk 0:02:58.3]} 10... bxc6 {[%clk 0:02:58.1]} 11. Bxc4
{[%clk 0:02:57.3]} 11... Nb6 {[%clk 0:02:58.1]} 12. Bd3 {[%clk 0:02:52.1]} 12...
c5 {[%clk 0:02:53.7]} 13. O-O {[%clk 0:02:45.5]} 13... Bb7 {[%clk 0:02:53.3]}
14. Qe2 {[%clk 0:02:45.1]} 14... Bxf3 {[%clk 0:02:48.7]} 15. gxf3 {[%clk
0:02:43.7]} 15... Nfd5 {[%clk 0:02:46.9]} 16. Bg3 {[%clk 0:02:40.5]} 16... Nxc3
{[%clk 0:02:44.5]} 17. Rxc3 {[%clk 0:02:39]} 17... Bf6 {[%clk 0:02:44.3]} 18.
Rc2 {[%clk 0:02:38.4]} 18... Qe7 {[%clk 0:02:38.6]} 19. Rfc1 {[%clk 0:02:34.4]}
19... Rfd8 {[%clk 0:02:27.6]} 20. Ba6 {[%clk 0:02:25.9]} 20... c4 {[%clk
0:01:55.2]} 21. Bxc4 {[%clk 0:02:21]} 21... Rac8 {[%clk 0:01:45.5]} 22. b3
{[%clk 0:02:16.4]} 22... h5 {[%clk 0:01:44.9]} 23. h3 {[%clk 0:02:03.9]} 23...
Qa3 {[%clk 0:01:33.6]} 24. Kg2 {[%clk 0:01:58.6]} 24... Nxc4 {[%clk 0:01:32.4]}
25. bxc4 {[%clk 0:01:56]} 25... Rc5 {[%clk 0:01:32.4]} 26. f4 {[%clk 0:01:52.2]}
26... Rdc8 {[%clk 0:01:31.3]} 27. f3 {[%clk 0:01:50.8]} 27... Rb8 {[%clk
0:00:59.6]} 28. Bf2 {[%clk 0:01:46.7]} 28... Rc7 {[%clk 0:00:57.7]} 29. c5
{[%clk 0:01:42.8]} 29... Bb2 {[%clk 0:00:54.2]} 30. Rb1 {[%clk 0:01:40.4]} 30...
Qxa2 {[%clk 0:00:31.3]} 31. Rbxb2 {[%clk 0:01:37.3]} 31... Rxb2 {[%clk
0:00:31.2]} 32. Rxb2 {[%clk 0:01:37.5]} 32... Qa3 {[%clk 0:00:28.4]} 33. e4
{[%clk 0:01:35.5]} 33... a5 {[%clk 0:00:26.3]} 34. Qc2 {[%clk 0:01:32.8]} 34...
a4 {[%clk 0:00:25.7]} 35. Ra2 {[%clk 0:01:30.5]} 35... Qb4 {[%clk 0:00:23.5]}
36. Rxa4 {[%clk 0:01:30.1]} 36... Qb8 {[%clk 0:00:23.7]} 37. Qa2 {[%clk
0:01:24]} 37... Kh7 {[%clk 0:00:23.8]} 38. Ra8 {[%clk 0:01:18.9]} 38... Qb7
{[%clk 0:00:23.1]} 39. Ra5 {[%clk 0:01:18.3]} 39... Qb4 {[%clk 0:00:18.6]} 40.
Ra7 {[%clk 0:01:11]} 40... Rc8 {[%clk 0:00:17.9]} 41. Rxf7 {[%clk 0:01:09.6]}
41... Rd8 {[%clk 0:00:18.4]} 42. Qa1 {[%clk 0:01:06]} 42... Rg8 {[%clk
0:00:16.3]} 43. Qe5 {[%clk 0:01:05.4]} 43... Kg6 {[%clk 0:00:16]} 44. Re7 {[%clk
0:01:04.3]} 1-0

[Event "*** Titled Tuesday Blitz"]
[Site "Chess.com"]
[Date "2020.10.20"]
[Round "9"]
[White "TST2014"]
[Black "alexwinter25"]
[Result "1-0"]
[WhiteElo "2510"]
[BlackElo "2370"]
[TimeControl "180+1"]
[EndTime "11:47:03 PDT"]
[Termination "TST2014 won on time"]

1. d4 {[%clk 0:03:00.9]} 1... d5 {[%clk 0:02:59.8]} 2. c4 {[%clk 0:03:00.4]}
2... e6 {[%clk 0:03:00.3]} 3. Nf3 {[%clk 0:02:59.9]} 3... Nf6 {[%clk 0:03:00.8]}
4. Nc3 {[%clk 0:02:59.4]} 4... c6 {[%clk 0:03:00.3]} 5. e3 {[%clk 0:02:57]} 5...
Be7 {[%clk 0:02:59.1]} 6. Qc2 {[%clk 0:02:53.1]} 6... O-O {[%clk 0:02:59]} 7. b3
{[%clk 0:02:52.9]} 7... b6 {[%clk 0:02:57.3]} 8. Bd3 {[%clk 0:02:51.9]} 8... Bb7
{[%clk 0:02:57.9]} 9. e4 {[%clk 0:02:49.8]} 9... dxe4 {[%clk 0:02:49.9]} 10.
Nxe4 {[%clk 0:02:50.7]} 10... h6 {[%clk 0:02:45.2]} 11. O-O {[%clk 0:02:47]}
11... Nbd7 {[%clk 0:02:45.2]} 12. Bb2 {[%clk 0:02:44.1]} 12... Rc8 {[%clk
0:02:44.2]} 13. Rad1 {[%clk 0:02:43.1]} 13... Qc7 {[%clk 0:02:41.3]} 14. Rfe1
{[%clk 0:02:40.6]} 14... c5 {[%clk 0:02:32.6]} 15. Qe2 {[%clk 0:02:30.3]} 15...
cxd4 {[%clk 0:01:55.3]} 16. Nxd4 {[%clk 0:02:24.7]} 16... Qf4 {[%clk 0:01:33.4]}
17. g3 {[%clk 0:02:19.1]} 17... Qg4 {[%clk 0:01:20.9]} 18. f3 {[%clk 0:02:16.6]}
18... Qh5 {[%clk 0:01:16.4]} 19. g4 {[%clk 0:01:49]} 19... Qh4 {[%clk
0:01:09.4]} 20. Ng3 {[%clk 0:01:38.1]} 20... Nc5 {[%clk 0:01:00.9]} 21. Ndf5
{[%clk 0:01:33.7]} 21... exf5 {[%clk 0:00:53.4]} 22. Nxf5 {[%clk 0:01:33.6]}
22... Nxd3 {[%clk 0:00:33.9]} 23. Nxh4 {[%clk 0:01:15.7]} 23... Bc5+ {[%clk
0:00:33.7]} 24. Kf1 {[%clk 0:01:10.5]} 24... Nxe1 {[%clk 0:00:19.3]} 25. Rxe1
{[%clk 0:01:06.9]} 25... Rfe8 {[%clk 0:00:18.7]} 26. Qd3 {[%clk 0:01:00.9]}
26... Rxe1+ {[%clk 0:00:17.4]} 27. Kxe1 {[%clk 0:01:01.2]} 27... Re8+ {[%clk
0:00:14.6]} 28. Kf1 {[%clk 0:00:58.4]} 28... Re3 {[%clk 0:00:10.8]} 29. Qd8+
{[%clk 0:00:56.8]} 29... Re8 {[%clk 0:00:09.1]} 30. Qc7 {[%clk 0:00:55.4]} 30...
Re7 {[%clk 0:00:08]} 31. Qb8+ {[%clk 0:00:54.3]} 31... Kh7 {[%clk 0:00:08]} 32.
Bxf6 {[%clk 0:00:51.9]} 32... gxf6 {[%clk 0:00:08.9]} 33. Nf5 {[%clk 0:00:51.5]}
33... Rd7 {[%clk 0:00:06.9]} 34. Qe8 {[%clk 0:00:48.7]} 1-0

[Event "*** Titled Tuesday Blitz"]
[Site "Chess.com"]
[Date "2020.10.20"]
[Round "9"]
[White "Roza_Idrisova"]
[Black "VladimirBugayev"]
[Result "1-0"]
[WhiteElo "2176"]
[BlackElo "2286"]
[TimeControl "180+1"]
[EndTime "11:47:05 PDT"]
[Termination "Roza_Idrisova won on time"]

1. d4 {[%clk 0:02:56.9]} 1... Nf6 {[%clk 0:02:57.9]} 2. Nf3 {[%clk 0:02:56.4]}
2... g6 {[%clk 0:02:57.3]} 3. c4 {[%clk 0:02:55.3]} 3... Bg7 {[%clk 0:02:55.7]}
4. Nc3 {[%clk 0:02:55.4]} 4... O-O {[%clk 0:02:55.4]} 5. e4 {[%clk 0:02:55.2]}
5... d6 {[%clk 0:02:55.9]} 6. Be2 {[%clk 0:02:54.7]} 6... e5 {[%clk 0:02:56.2]}
7. O-O {[%clk 0:02:54.4]} 7... Nc6 {[%clk 0:02:55.8]} 8. d5 {[%clk 0:02:54.6]}
8... Ne7 {[%clk 0:02:56]} 9. b4 {[%clk 0:02:54.8]} 9... Ne8 {[%clk 0:02:55.9]}
10. c5 {[%clk 0:02:54.7]} 10... f5 {[%clk 0:02:52.3]} 11. cxd6 {[%clk
0:02:54.5]} 11... cxd6 {[%clk 0:02:52.3]} 12. a4 {[%clk 0:02:53.2]} 12... f4
{[%clk 0:02:46.2]} 13. Nd2 {[%clk 0:02:50.1]} 13... Rf7 {[%clk 0:02:31.9]} 14.
Bg4 {[%clk 0:02:45.3]} 14... g5 {[%clk 0:02:28.2]} 15. Bb2 {[%clk 0:02:38]}
15... Ng6 {[%clk 0:02:23.9]} 16. Rc1 {[%clk 0:02:17.4]} 16... Nf6 {[%clk
0:02:22.5]} 17. Be6 {[%clk 0:01:50.2]} 17... Bxe6 {[%clk 0:02:16.7]} 18. dxe6
{[%clk 0:01:49.9]} 18... Re7 {[%clk 0:02:08.6]} 19. Nd5 {[%clk 0:01:48.9]} 19...
Nxd5 {[%clk 0:02:02.1]} 20. exd5 {[%clk 0:01:48.4]} 20... Rc7 {[%clk 0:01:52.3]}
21. Ne4 {[%clk 0:01:45.9]} 21... Rac8 {[%clk 0:01:45.7]} 22. Qd2 {[%clk
0:01:40.7]} 22... h6 {[%clk 0:01:41.6]} 23. h3 {[%clk 0:01:36.5]} 23... Ne7
{[%clk 0:01:40.9]} 24. Rfd1 {[%clk 0:01:29.8]} 24... Rxc1 {[%clk 0:01:17.8]} 25.
Rxc1 {[%clk 0:01:28.5]} 25... Rxc1+ {[%clk 0:01:17.6]} 26. Bxc1 {[%clk
0:01:27.8]} 26... Qb6 {[%clk 0:01:18.1]} 27. Bb2 {[%clk 0:01:17.5]} 27... Nf5
{[%clk 0:01:03.6]} 28. Qc3 {[%clk 0:01:06.8]} 28... Qd8 {[%clk 0:00:07.4]} 29.
Qc4 {[%clk 0:01:01.2]} 29... Nd4 {[%clk 0:00:06.8]} 30. b5 {[%clk 0:00:46.3]}
30... Kh7 {[%clk 0:00:02.6]} 31. Qd3 {[%clk 0:00:36.6]} 1-0

[Event "*** Titled Tuesday Blitz"]
[Site "Chess.com"]
[Date "2020.10.20"]
[Round "9"]
[White "MisiekZielony"]
[Black "maxip32"]
[Result "0-1"]
[WhiteElo "2277"]
[BlackElo "2434"]
[TimeControl "180+1"]
[EndTime "11:47:08 PDT"]
[Termination "maxip32 won on time"]

1. c4 {[%clk 0:03:00]} 1... g6 {[%clk 0:02:59.9]} 2. Nc3 {[%clk 0:02:59.6]} 2...
Bg7 {[%clk 0:03:00.2]} 3. g3 {[%clk 0:03:00.2]} 3... d6 {[%clk 0:02:59.8]} 4.
Bg2 {[%clk 0:03:00.7]} 4... e5 {[%clk 0:03:00.3]} 5. e4 {[%clk 0:03:01]} 5... c5
{[%clk 0:02:56.4]} 6. Nge2 {[%clk 0:03:00.7]} 6... Nc6 {[%clk 0:02:57]} 7. d3
{[%clk 0:03:00.8]} 7... Nge7 {[%clk 0:02:57.6]} 8. O-O {[%clk 0:03:00.9]} 8...
O-O {[%clk 0:02:58.3]} 9. f4 {[%clk 0:03:01]} 9... f5 {[%clk 0:02:53.5]} 10. Rb1
{[%clk 0:02:37.6]} 10... a5 {[%clk 0:02:40.5]} 11. a3 {[%clk 0:02:36.4]} 11...
fxe4 {[%clk 0:02:35.8]} 12. dxe4 {[%clk 0:02:36]} 12... Nd4 {[%clk 0:02:35.2]}
13. Qd3 {[%clk 0:02:35.6]} 13... Be6 {[%clk 0:02:19.5]} 14. Nxd4 {[%clk
0:02:18.9]} 14... cxd4 {[%clk 0:02:16.7]} 15. Nd5 {[%clk 0:02:19.5]} 15... Nxd5
{[%clk 0:02:15.8]} 16. cxd5 {[%clk 0:02:19.3]} 16... Bd7 {[%clk 0:02:15.6]} 17.
f5 {[%clk 0:02:15.4]} 17... Qb6 {[%clk 0:02:12.3]} 18. a4 {[%clk 0:02:14.6]}
18... Bxa4 {[%clk 0:02:08]} 19. Rf2 {[%clk 0:01:57.1]} 19... Qb3 {[%clk
0:01:58.9]} 20. Qxb3 {[%clk 0:01:41.8]} 20... Bxb3 {[%clk 0:01:59.8]} 21. g4
{[%clk 0:01:38.6]} 21... Bc4 {[%clk 0:01:36.9]} 22. Bd2 {[%clk 0:01:32.5]} 22...
gxf5 {[%clk 0:01:26.3]} 23. gxf5 {[%clk 0:01:30.9]} 23... Bf6 {[%clk 0:01:06]}
24. Bf1 {[%clk 0:01:29.2]} 24... Bxf1 {[%clk 0:01:03.4]} 25. Kxf1 {[%clk
0:01:29.2]} 25... Rfc8 {[%clk 0:01:03.4]} 26. Rc1 {[%clk 0:00:54.3]} 26... Rxc1+
{[%clk 0:01:02]} 27. Bxc1 {[%clk 0:00:54.2]} 27... Rc8 {[%clk 0:01:02.1]} 28.
Bd2 {[%clk 0:00:54.2]} 28... b6 {[%clk 0:00:59.1]} 29. Ke2 {[%clk 0:00:17.7]}
29... Rc2 {[%clk 0:00:51.6]} 30. b4 {[%clk 0:00:13.2]} 30... Bg5 {[%clk
0:00:44.1]} 31. Rg2 {[%clk 0:00:06.3]} 31... Rxd2+ {[%clk 0:00:43.7]} 0-1

[Event "*** Titled Tuesday Blitz"]
[Site "Chess.com"]
[Date "2020.10.20"]
[Round "9"]
[White "ChessWarrior7197"]
[Black "scarabee43"]
[Result "1-0"]
[WhiteElo "2985"]
[BlackElo "2507"]
[TimeControl "180+1"]
[EndTime "11:47:09 PDT"]
[Termination "ChessWarrior7197 won by resignation"]

1. e4 {[%clk 0:03:00.9]} 1... c5 {[%clk 0:03:00]} 2. Nf3 {[%clk 0:02:59.9]} 2...
e6 {[%clk 0:03:00.5]} 3. d4 {[%clk 0:02:57.2]} 3... cxd4 {[%clk 0:03:01.4]} 4.
Nxd4 {[%clk 0:02:58.1]} 4... Nc6 {[%clk 0:03:01.9]} 5. Nc3 {[%clk 0:02:58.5]}
5... Qc7 {[%clk 0:03:02]} 6. Be3 {[%clk 0:02:58.8]} 6... a6 {[%clk 0:03:01.9]}
7. Qf3 {[%clk 0:02:59.2]} 7... Nf6 {[%clk 0:03:00.6]} 8. O-O-O {[%clk 0:02:59]}
8... Be7 {[%clk 0:03:01.1]} 9. Nxc6 {[%clk 0:02:57.8]} 9... bxc6 {[%clk
0:02:59.9]} 10. Qg3 {[%clk 0:02:57.9]} 10... Qxg3 {[%clk 0:02:58.3]} 11. hxg3
{[%clk 0:02:58.8]} 11... Ng4 {[%clk 0:02:57.7]} 12. Re1 {[%clk 0:02:50.4]} 12...
Nxe3 {[%clk 0:02:56.6]} 13. Rxe3 {[%clk 0:02:51.3]} 13... O-O {[%clk 0:02:43.7]}
14. e5 {[%clk 0:02:48]} 14... a5 {[%clk 0:02:38.2]} 15. Bd3 {[%clk 0:02:47.7]}
15... h6 {[%clk 0:02:36]} 16. f4 {[%clk 0:02:47.3]} 16... Ba6 {[%clk 0:02:35.3]}
17. Rd1 {[%clk 0:02:46.5]} 17... Rfd8 {[%clk 0:02:31.6]} 18. Ne4 {[%clk
0:02:33.1]} 18... Kf8 {[%clk 0:02:27.6]} 19. g4 {[%clk 0:02:26.1]} 19... g6
{[%clk 0:02:07.8]} 20. Rf3 {[%clk 0:02:07.3]} 20... Bxd3 {[%clk 0:02:03.8]} 21.
Rdxd3 {[%clk 0:02:05.9]} 21... Rab8 {[%clk 0:01:48.5]} 22. a3 {[%clk 0:02:04.1]}
22... Rb5 {[%clk 0:01:47.8]} 23. c4 {[%clk 0:02:02.6]} 23... Rb7 {[%clk
0:01:45.4]} 24. f5 {[%clk 0:02:03.5]} 24... exf5 {[%clk 0:01:43]} 25. gxf5
{[%clk 0:02:04.4]} 25... gxf5 {[%clk 0:01:38.9]} 26. Rxf5 {[%clk 0:02:05.3]}
26... Rdb8 {[%clk 0:01:38.7]} 27. Rd2 {[%clk 0:01:58.3]} 27... Kg7 {[%clk
0:01:27.8]} 28. Rdf2 {[%clk 0:01:57]} 28... Rf8 {[%clk 0:01:27.8]} 29. R5f3
{[%clk 0:01:57.1]} 29... Rbb8 {[%clk 0:01:20.6]} 30. Ng3 {[%clk 0:01:57.1]}
30... Bg5+ {[%clk 0:01:18.9]} 31. Kc2 {[%clk 0:01:57.2]} 31... Rbe8 {[%clk
0:01:16.7]} 32. Nf5+ {[%clk 0:01:56.8]} 32... Kg6 {[%clk 0:01:17.2]} 33. Re2
{[%clk 0:01:55.8]} 33... Re6 {[%clk 0:01:16.7]} 34. Nd4 {[%clk 0:01:56]} 34...
Re7 {[%clk 0:01:16.6]} 35. Rd3 {[%clk 0:01:56.4]} 35... Rfe8 {[%clk 0:01:16.5]}
36. Nf3 {[%clk 0:01:57.3]} 36... Bf4 {[%clk 0:01:15.6]} 37. Rd6+ {[%clk
0:01:56.2]} 37... Kg7 {[%clk 0:01:13.1]} 38. Re4 {[%clk 0:01:54.7]} 38... Bxe5
{[%clk 0:01:12.6]} 39. Nxe5 {[%clk 0:01:52.8]} 39... Rxe5 {[%clk 0:01:13.1]} 40.
Rxe5 {[%clk 0:01:53.7]} 40... Rxe5 {[%clk 0:01:13.3]} 41. Rxd7 {[%clk
0:01:54.6]} 41... Re2+ {[%clk 0:01:13.6]} 42. Rd2 {[%clk 0:01:55.2]} 42... Re4
{[%clk 0:01:11.8]} 43. Kd3 {[%clk 0:01:55]} 43... Rg4 {[%clk 0:01:11.2]} 44. b4
{[%clk 0:01:55.1]} 44... axb4 {[%clk 0:01:10.8]} 45. axb4 {[%clk 0:01:56]} 45...
Kf6 {[%clk 0:01:10.7]} 46. Re2 {[%clk 0:01:54.2]} 46... h5 {[%clk 0:01:06.8]}
47. Kc3 {[%clk 0:01:54.3]} 47... Rg5 {[%clk 0:01:04.7]} 48. Kd4 {[%clk
0:01:54.2]} 48... h4 {[%clk 0:01:04.3]} 49. Re4 {[%clk 0:01:48.9]} 49... Rxg2
{[%clk 0:01:03.3]} 50. Rxh4 {[%clk 0:01:48.7]} 50... Ke6 {[%clk 0:00:58.4]} 51.
Kc5 {[%clk 0:01:48.8]} 51... Kd7 {[%clk 0:00:58.3]} 52. Kb6 {[%clk 0:01:49.3]}
52... Rg6 {[%clk 0:00:53.1]} 53. c5 {[%clk 0:01:49.3]} 53... f5 {[%clk
0:00:50.1]} 54. Rh7+ {[%clk 0:01:47.2]} 54... Ke8 {[%clk 0:00:50]} 55. b5 {[%clk
0:01:38]} 55... cxb5+ {[%clk 0:00:49.9]} 56. c6 {[%clk 0:01:38.9]} 56... f4
{[%clk 0:00:33.9]} 57. Kb7 {[%clk 0:01:37.7]} 57... Rg1 {[%clk 0:00:32.2]} 58.
c7 {[%clk 0:01:37.4]} 58... Rc1 {[%clk 0:00:32.6]} 59. c8=Q+ {[%clk 0:01:30.8]}
59... Rxc8 {[%clk 0:00:32.7]} 60. Kxc8 {[%clk 0:01:31.7]} 60... b4 {[%clk
0:00:32.9]} 61. Rh4 {[%clk 0:01:31.6]} 61... b3 {[%clk 0:00:30.4]} 62. Rxf4
{[%clk 0:01:31]} 62... b2 {[%clk 0:00:30.1]} 63. Rb4 {[%clk 0:01:31.9]} 1-0